bitfinex/quotes_SOLUSD_20250831
["timestamp","ask_amount","ask_price","bid_price","bid_amount"]
[1756613524550,1e-08,205.81,205.8,13.59559401]
[1756613524724,1e-08,205.81,205.8,24.41584083]
[1756613525455,1e-08,205.81,205.8,29.27492732]
[1756613525958,1e-08,205.81,205.8,22.3848757]
[1756613526137,1e-08,205.81,205.8,25.82990151]
[1756613526337,1e-08,205.81,205.8,51.10990151]
[1756613526530,1e-08,205.81,205.8,51.82990151]
[1756613526839,1e-08,205.81,205.8,51.10990151]
[1756613527022,1e-08,205.81,205.8,88.88990151]
[1756613527720,1e-08,205.81,205.8,89.60990151]
[1756613528416,1e-08,205.81,205.8,88.88990151]
[1756613528963,1e-08,205.81,205.8,51.10990151]
[1756613529151,1e-08,205.81,205.8,88.88990151]
[1756613530662,0.77,205.85,205.81,13.59559401]
[1756613530853,0.06,205.85,205.84,17.04061982]
[1756613531052,0.06,205.85,205.84,58.03081502]
[1756613531427,0.77,205.85,205.84,58.03081502]
[1756613533955,0.77,205.85,205.84,58.06597186]
[1756613535343,0.77,205.85,205.84,62.9241141]
[1756613536142,0.06,205.85,205.84,62.9241141]
[1756613536346,0.77,205.85,205.84,62.9241141]
[1756613537664,9.07293205,205.85,205.84,3.24535204]
[1756613538254,9.07293205,205.85,205.79,27.5]
[1756613538569,4.8081921,205.84,205.8,3.12346705]
[1756613538751,0.71,205.83,205.81,3.12346705]
[1756613538951,4.85837827,205.83,205.82,3.12346705]
[1756613539157,4.85837827,205.83,205.77,0.03]
[1756613539472,0.71,205.82,205.77,0.03]
[1756613539772,3.44502581,205.79,205.77,0.03]
[1756613540066,0.71,205.82,205.77,0.03]
[1756613540260,0.71,205.78,205.77,0.03]
[1756613546872,4.15502581,205.78,205.77,0.03]
[1756613547063,9.01458456,205.78,205.77,0.03]
[1756613549172,35.01458456,205.78,205.77,0.03]
[1756613549588,26.0,205.76,205.75,0.03]
[1756613549792,3.44502581,205.75,205.74,1e-08]
[1756613549964,4.15502581,205.75,205.74,1e-08]
[1756613550151,6.10391681,205.75,205.74,1e-08]
[1756613550575,10.96418412,205.75,205.74,1e-08]
[1756613550782,7.51915831,205.75,205.74,1e-08]
[1756613550973,10.96418412,205.75,205.74,1e-08]
[1756613560958,10.96418412,205.75,205.73,0.03]
[1756613561163,34.30552935,205.74,205.73,0.03]
[1756613561568,34.99552935,205.74,205.73,0.03]
[1756613562174,36.94451435,205.74,205.73,0.03]
[1756613563073,74.70451435,205.74,205.73,0.03]
[1756613564388,74.01451435,205.74,205.73,0.03]
[1756613564572,32.80948854,205.74,205.73,0.03]
[1756613564779,72.06552935,205.74,205.73,0.03]
[1756613565269,68.62050354,205.74,205.73,0.03]
[1756613565469,34.30552935,205.74,205.73,0.03]
[1756613565690,72.06552935,205.74,205.73,0.71]
[1756613566371,34.30552935,205.74,205.73,0.71]
[1756613566578,72.06552935,205.74,205.73,0.71]
[1756613566762,72.06552935,205.74,205.73,0.03]
[1756613566968,72.06552935,205.74,205.73,0.71]
[1756613567462,34.30552935,205.74,205.73,0.71]
[1756613567674,72.06552935,205.74,205.73,0.71]
[1756613568072,72.06552935,205.74,205.73,0.03]
[1756613570295,72.12552935,205.74,205.73,0.03]
[1756613571372,72.81552935,205.74,205.73,0.03]
[1756613571784,74.76441935,205.74,205.73,0.03]
[1756613572880,74.07441935,205.74,205.73,0.03]
[1756613573570,36.31441935,205.74,205.73,0.03]
[1756613573770,74.07441935,205.74,205.73,0.03]
[1756613575496,74.05441935,205.74,205.73,0.03]
[1756613578101,48.74441935,205.74,205.73,0.03]
[1756613580177,48.74441935,205.74,205.72,0.03]
[1756613580378,3.44502581,205.73,205.72,0.03]
[1756613580774,31.39401081,205.73,205.72,0.03]
[1756613581690,67.18502581,205.73,205.72,0.03]
[1756613582395,46.72576561,205.73,205.72,0.03]
[1756613582695,48.67475061,205.73,205.72,0.03]
[1756613582883,10.93475061,205.73,205.72,0.03]
[1756613583083,47.99475061,205.73,205.72,0.03]
[1756613583897,44.5497248,205.73,205.72,0.03]
[1756613584098,47.99475061,205.73,205.72,0.03]
[1756613587398,46.75972281,205.73,205.72,0.03]
[1756613588223,50.8455744,205.73,205.72,0.03]
[1756613591315,46.75972281,205.73,205.72,0.03]
[1756613593090,46.75972281,205.73,205.71,0.03]
[1756613593091,56.27971485,205.73,205.71,0.03]
[1756613593292,37.04999005,205.71,205.7,0.03]
[1756613593501,80.24035255,205.71,205.7,0.03]
[1756613593708,80.92035255,205.71,205.7,0.03]
[1756613594310,87.73083593,205.71,205.7,0.03]
[1756613594926,87.05083593,205.71,205.7,0.03]
[1756613595599,49.33083593,205.71,205.7,0.03]
[1756613595799,87.05083593,205.71,205.7,0.03]
[1756613596306,81.58047343,205.71,205.7,0.03]
[1756613602246,82.26047343,205.71,205.7,0.03]
[1756613603846,81.58047343,205.71,205.7,0.03]
[1756613605525,81.58047343,205.71,205.69,0.03]
[1756613605732,15.91143876,205.7,205.69,0.03]
[1756613606110,16.59143876,205.7,205.69,0.03]
[1756613606619,18.54080376,205.7,205.69,0.03]
[1756613610133,26.0,205.68,205.67,0.03]
[1756613610336,26.0,205.68,205.65,0.75]
[1756613610337,65.90999801,205.68,205.65,0.03]
[1756613610521,6.30756278,205.66,205.65,0.03]
[1756613610835,2.20999801,205.66,205.65,0.03]
[1756613611034,44.00748054,205.66,205.65,0.03]
[1756613611236,44.77239225,205.66,205.65,0.03]
[1756613611417,48.86913457,205.66,205.65,0.03]
[1756613613015,50.81878457,205.66,205.65,0.03]
[1756613615417,44.77239225,205.66,205.65,0.03]
[1756613616925,7.07239225,205.66,205.65,0.72]
[1756613617110,44.77239225,205.66,205.65,0.72]
[1756613620941,44.77239225,205.66,205.65,0.03]
[1756613622429,46.72204325,205.66,205.65,0.03]
[1756613622630,50.81878557,205.66,205.65,0.03]
[1756613622830,47.40204325,205.66,205.65,0.03]
[1756613624325,26.0,205.63,205.62,0.1]
[1756613624642,65.90999801,205.63,205.62,0.1]
[1756613625442,67.86002801,205.63,205.62,0.1]
[1756613625626,71.95430217,205.63,205.62,0.1]
[1756613625825,71.93430217,205.63,205.62,0.1]
[1756613627343,76.7974058,205.63,205.62,0.1]
[1756613627648,77.4774058,205.63,205.61,0.03]
[1756613627821,6.30307648,205.62,205.61,0.03]
[1756613628347,8.25320248,205.62,205.61,0.03]
[1756613628759,13.11654262,205.62,205.61,0.03]
[1756613629468,9.02346415,205.62,205.61,0.03]
[1756613632130,46.70346415,205.62,205.61,0.03]
[1756613632450,9.02346415,205.62,205.61,0.03]
[1756613632653,46.70346415,205.62,205.61,0.03]
[1756613635838,47.38346415,205.62,205.61,0.03]
[1756613636848,51.47654262,205.62,205.61,0.03]
[1756613638163,50.79654262,205.62,205.61,0.03]
[1756613640256,3.97320447,205.62,205.61,14.31559401]
[1756613640459,1.09384415,205.69,205.62,13.59559401]
[1756613640460,4.86168506,205.69,205.62,13.59559401]
[1756613640767,0.06,205.7,205.62,15.80559202]
[1756613640768,2.20999801,205.68,205.62,15.80559202]
[1756613640942,39.90999801,205.68,205.63,3.14542058]
[1756613641142,39.90999801,205.68,205.64,3.14542058]
[1756613641346,3.4534095,205.66,205.63,14.61739]
[1756613641548,3.4534095,205.66,205.64,3.14573007]
[1756613641755,41.1534095,205.67,205.65,3.14535909]
[1756613641962,41.1534095,205.67,205.64,14.61739]
[1756613642158,3.4534095,205.65,205.61,0.03]
[1756613642466,3.4534095,205.65,205.62,3.14601373]
[1756613642467,41.1534095,205.65,205.62,3.14601373]
[1756613642665,41.1534095,205.65,205.63,3.14601373]
[1756613642864,41.1534095,205.65,205.61,14.649527]
[1756613643162,41.1534095,205.65,205.62,3.14601395]
[1756613643368,41.1534095,205.65,205.63,3.14601395]
[1756613643663,41.1534095,205.65,205.61,14.649527]
[1756613643863,41.1534095,205.65,205.62,3.14623383]
[1756613644080,41.1534095,205.65,205.61,14.649527]
[1756613644081,42.56264966,205.65,205.63,3.14623383]
[1756613644257,3.4534095,205.64,205.61,0.03]
[1756613644444,42.56264966,205.65,205.61,0.03]
[1756613644445,3.4534095,205.62,205.61,0.03]
[1756613644646,3.4534095,205.62,205.61,3.17709773]
[1756613645550,8.31674964,205.62,205.61,3.17709773]
[1756613646163,8.98674964,205.62,205.61,0.03]
[1756613647167,46.68674964,205.62,205.61,0.03]
[1756613647562,43.23334014,205.62,205.61,0.03]
[1756613647772,46.68674964,205.62,205.61,0.03]
[1756613648570,8.98674964,205.62,205.61,0.03]
[1756613648770,46.68674964,205.62,205.61,0.03]
[1756613649867,50.14015914,205.62,205.61,0.03]
[1756613650047,50.14015914,205.62,205.6,1e-08]
[1756613650370,26.0,205.59,205.58,0.03]
[1756613650570,70.606819,205.59,205.58,0.03]
[1756613650864,71.276819,205.59,205.58,0.03]
[1756613651266,73.227134,205.59,205.58,0.03]
[1756613651871,78.0911838,205.59,205.58,0.03]
[1756613652668,78.0911838,205.59,205.57,0.03]
[1756613652852,3.4534095,205.58,205.57,0.03]
[1756613653261,6.0740105,205.58,205.57,0.03]
[1756613653869,43.7740105,205.58,205.57,0.03]
[1756613654072,48.6382969,205.58,205.57,0.03]
[1756613654250,26.0,205.55,205.49,0.1]
[1756613654457,37.7,205.54,205.5,3.11697934]
[1756613654654,42.19397773,205.54,205.49,0.1]
[1756613654959,37.7,205.53,205.5,3.11719114]
[1756613655271,37.7,205.52,205.49,0.1]
[1756613655468,2.639123,205.53,205.5,3.11656053]
[1756613655674,3.4534095,205.51,205.49,0.1]
[1756613655884,41.1534095,205.5,205.49,0.1]
[1756613656053,46.01958954,205.5,205.49,3.21656492]
[1756613656780,8.31958954,205.5,205.49,3.21656492]
[1756613656964,46.01958954,205.5,205.49,3.21656492]
[1756613657479,8.31958954,205.5,205.49,3.21656492]
[1756613657780,45.99958954,205.5,205.49,3.21656492]
[1756613658483,41.1334095,205.52,205.49,3.21656492]
[1756613658691,37.68,205.52,205.5,3.11656492]
[1756613658870,41.1334095,205.52,205.49,0.1]
[1756613659075,3.4534095,205.51,205.5,3.14419134]
[1756613659984,4.967542,205.55,205.5,3.14419134]
[1756613660186,4.967542,205.55,205.5,0.03]
[1756613660187,3.4534095,205.53,205.5,0.03]
[1756613660363,37.7,205.52,205.51,3.11260188]
[1756613660686,41.1534095,205.52,205.51,3.11260188]
[1756613660864,37.7,205.52,205.51,3.11260188]
[1756613661063,37.7,205.52,205.51,3.11263284]
[1756613661282,3.4534095,205.55,205.51,3.11263284]
[1756613661487,3.4534095,205.55,205.52,3.11263284]
[1756613661792,4.966403,205.57,205.53,3.11263284]
[1756613662089,37.7,205.56,205.54,3.11226414]
[1756613662272,4.86428662,205.58,205.52,13.59559401]
[1756613662472,3.4534095,205.56,205.53,3.11236937]
[1756613662781,3.4534095,205.56,205.54,3.11236937]
[1756613662982,3.4534095,205.57,205.52,17.04900351]
[1756613663290,3.4534095,205.57,205.53,3.11237082]
[1756613663475,3.4534095,205.57,205.54,3.11237082]
[1756613663675,3.4534095,205.57,205.53,14.625229]
[1756613663676,3.4534095,205.58,205.55,3.11237082]
[1756613663876,41.1534095,205.59,205.54,18.46072343]
[1756613664073,41.1534095,205.59,205.55,3.11207379]
[1756613664273,41.1534095,205.59,205.54,18.46072343]
[1756613664478,41.1734095,205.59,205.55,3.11238667]
[1756613664674,37.72,205.59,205.56,17.73547667]
[1756613664881,37.72,205.59,205.57,3.11238667]
[1756613665083,37.72,205.59,205.56,14.62309]
[1756613665394,41.1734095,205.59,205.57,3.11187212]
[1756613665572,41.1734095,205.59,205.56,14.62309]
[1756613665772,3.4534095,205.59,205.57,3.11186471]
[1756613665976,3.4534095,205.59,205.56,14.62309]
[1756613666191,3.4534095,205.59,205.57,3.11190501]
[1756613666386,4.1234095,205.58,205.56,14.62309]
[1756613666593,4.1234095,205.57,205.51,13.59559401]
[1756613666790,4.1234095,205.57,205.52,17.73625666]
[1756613666791,3.4534095,205.55,205.52,17.73625666]
[1756613666989,3.4534095,205.55,205.53,3.11316666]
[1756613667172,3.4534095,205.55,205.52,14.62309]
[1756613668189,3.4534095,205.54,205.52,14.62309]
[1756613669198,3.4534095,205.55,205.52,14.62309]
[1756613670602,43.23460155,205.57,205.52,14.62309]
[1756613670905,3.4534095,205.55,205.52,14.62309]
[1756613671201,3.4534095,205.56,205.52,14.62309]
[1756613671709,37.7,205.57,205.52,22.94218714]
[1756613672185,37.7,205.57,205.52,8.31909714]
[1756613672786,37.7,205.57,205.53,19.49057209]
[1756613672990,14.625229,205.59,205.53,19.49057209]
[1756613673185,3.4534095,205.57,205.53,19.49057209]
[1756613674006,4.1434095,205.57,205.53,19.49057209]
[1756613674497,3.4534095,205.57,205.53,19.49057209]
[1756613674892,3.4534095,205.57,205.54,3.06999145]
[1756613675211,3.4534095,205.57,205.55,3.06999145]
[1756613675510,3.4534095,205.57,205.53,19.49057209]
[1756613675801,37.68,205.58,205.54,3.06998696]
[1756613675986,3.4534095,205.57,205.55,3.06998696]
[1756613676188,3.4534095,205.57,205.53,19.49057209]
[1756613676404,3.4534095,205.57,205.54,7.93521346]
[1756613676595,3.4534095,205.57,205.55,3.06998323]
[1756613676797,3.4534095,205.57,205.54,4.86523023]
[1756613677011,3.4534095,205.57,205.55,3.06998218]
[1756613677187,3.4534095,205.57,205.54,4.86523023]
[1756613677389,3.5134095,205.57,205.55,3.06997853]
[1756613677588,3.5134095,205.57,205.54,4.86523023]
[1756613677786,3.5134095,205.57,205.55,3.06997815]
[1756613677995,3.5134095,205.57,205.56,3.06986882]
[1756613679319,4.2034095,205.57,205.56,3.06986882]
[1756613681215,0.06,205.57,205.56,3.06986882]
[1756613681399,0.06,205.57,205.56,16.66546283]
[1756613681598,0.06,205.57,205.56,13.59559401]
[1756613681804,0.06,205.57,205.56,31.28721052]
[1756613682005,0.06,205.57,205.56,39.6053797]
[1756613682405,0.06,205.57,205.56,36.1519702]
[1756613683717,0.06,205.57,205.56,39.6053797]
[1756613685420,0.06,205.57,205.56,39.6049701]
[1756613690328,0.06,205.57,205.56,36.53614019]
[1756613690520,0.06,205.57,205.56,62.53614019]
[1756613691525,1e-08,205.57,205.56,36.53614019]
[1756613695499,1e-08,205.6,205.59,26.0]
[1756613695705,1e-08,205.6,205.59,80.70900351]
[1756613696134,1e-08,205.6,205.59,82.65770351]
[1756613697442,1e-08,205.6,205.59,90.97516281]
[1756613698532,1e-08,205.6,205.59,46.40834381]
[1756613698734,1e-08,205.6,205.59,87.52175331]
[1756613699233,1e-08,205.6,205.59,90.97516281]
[1756613699622,1e-08,205.6,205.59,87.52175331]
[1756613700210,1e-08,205.6,205.59,84.06834381]
[1756613700410,1e-08,205.6,205.59,87.52175331]
[1756613701022,1e-08,205.6,205.59,90.97516281]
[1756613703238,0.67000001,205.6,205.59,46.40834381]
[1756613703417,0.67000001,205.6,205.59,87.52175331]
[1756613703626,0.67000001,205.6,205.59,49.86175331]
[1756613703938,0.67000001,205.6,205.59,13.59559401]
[1756613704648,0.67000001,205.6,205.59,18.45964381]
[1756613705126,0.67000001,205.6,205.59,21.91305331]
[1756613705442,0.67000001,205.6,205.59,18.45964381]
[1756613705628,0.67000001,205.6,205.59,13.59559401]
[1756613706132,0.67000001,205.6,205.58,37.66]
[1756613706328,0.67,205.59,205.58,37.66]
[1756613707040,0.67,205.59,205.58,42.5242864]
[1756613708529,0.67,205.59,205.58,37.66]
[1756613708939,0.67,205.59,205.57,56.12006385]
[1756613709139,0.67,205.58,205.57,56.12006385]
[1756613709841,0.67,205.58,205.57,51.25559401]
[1756613710033,0.67,205.58,205.57,13.59559401]
[1756613710533,4.1234095,205.58,205.54,3.453409]
[1756613710850,4.1234095,205.58,205.54,37.66]
[1756613710851,0.67,205.57,205.54,37.66]
[1756613711050,0.67,205.56,205.54,13.59559401]
[1756613711240,0.67,205.55,205.54,13.59559401]
[1756613711950,0.67,205.55,205.52,3.483409]
[1756613712128,0.67,205.54,205.52,0.03]
[1756613715442,3.4534095,205.53,205.52,0.03]
[1756613715831,0.67,205.53,205.52,0.03]
[1756613717241,4.1234095,205.53,205.52,0.03]
[1756613718836,8.98887926,205.53,205.52,0.03]
[1756613722165,5.53546976,205.53,205.52,0.03]
[1756613722471,3.4534095,205.53,205.52,0.03]
[1756613722640,0.67,205.54,205.52,0.03]
[1756613722846,3.4534095,205.53,205.52,0.03]
[1756613723044,4.1234095,205.53,205.52,0.03]
[1756613723459,0.67,205.56,205.52,0.03]
[1756613723768,1e-08,205.6,205.52,0.03]
[1756613723769,4.1234095,205.55,205.52,0.03]
[1756613723967,0.67,205.54,205.52,0.03]
[1756613724141,3.4534095,205.53,205.52,0.03]
[1756613724346,4.1234095,205.53,205.52,0.03]
[1756613725766,0.67,205.53,205.52,0.03]
[1756613725952,4.1234095,205.53,205.52,0.03]
[1756613729166,8.98887926,205.53,205.52,0.03]
[1756613732250,46.64887926,205.53,205.52,0.03]
[1756613734374,8.98887926,205.53,205.52,0.03]
[1756613734567,41.8034095,205.53,205.52,0.03]
[1756613735274,46.66887926,205.53,205.52,0.03]
[1756613738273,8.98887926,205.53,205.52,0.03]
[1756613738575,46.66887926,205.53,205.52,0.03]
[1756613738869,8.98887926,205.53,205.52,0.03]
[1756613739076,46.66887926,205.53,205.52,0.03]
[1756613743673,3.4534095,205.53,205.52,0.03]
[1756613745086,5.56432005,205.58,205.52,0.03]
[1756613745087,3.4534095,205.54,205.52,0.03]
[1756613745381,3.4534095,205.55,205.52,13.62559401]
[1756613746479,3.4534095,205.55,205.53,4.86546976]
[1756613748556,0.7,205.58,205.53,4.86546976]
[1756613748769,3.4534095,205.55,205.53,4.86546976]
[1756613749095,4.1534095,205.54,205.52,0.03]
[1756613749395,3.4534095,205.53,205.52,0.03]
[1756613750583,4.1534095,205.53,205.52,0.03]
[1756613751794,0.7,205.53,205.52,0.03]
[1756613752004,4.1534095,205.53,205.52,0.03]
[1756613753596,9.01887926,205.53,205.52,0.03]
[1756613756303,26.0,205.51,205.5,0.03]
[1756613756502,26.0,205.51,205.49,0.1]
[1756613756503,70.586819,205.51,205.49,0.1]
[1756613756806,4.1534095,205.5,205.49,0.1]
[1756613757882,7.606819,205.5,205.49,0.1]
[1756613758302,12.47299904,205.5,205.49,0.1]
[1756613758683,9.01958954,205.5,205.49,0.1]
[1756613759807,4.1534095,205.5,205.49,0.1]
[1756613759985,9.01958954,205.5,205.49,0.1]
[1756613760800,26.0,205.48,205.47,0.03]
[1756613760986,70.646819,205.48,205.39,13.59559401]
[1756613761193,3.4534095,205.4,205.39,13.59559401]
[1756613765509,3.4534095,205.4,205.39,18.46438022]
[1756613766921,3.4534095,205.41,205.39,18.46438022]
[1756613767222,3.4534095,205.42,205.39,18.46438022]
[1756613767419,0.7,205.49,205.41,13.59559401]
[1756613767620,3.4534095,205.44,205.39,18.46438022]
[1756613767927,3.4534095,205.44,205.41,13.59559401]
[1756613768103,3.4534095,205.46,205.41,13.59559401]
[1756613768307,3.4534095,205.45,205.41,13.59559401]
[1756613769032,3.4534095,205.43,205.4,4.867116]
[1756613769203,3.4534095,205.45,205.39,3.4534095]
[1756613769415,3.4534095,205.45,205.4,13.59559401]
[1756613769604,4.1534095,205.45,205.4,13.59559401]
[1756613770529,3.4534095,205.44,205.4,18.46393668]
[1756613771023,0.7,205.45,205.4,18.46393668]
[1756613771217,3.4534095,205.44,205.4,18.46393668]
[1756613771409,3.4534095,205.45,205.4,21.91734618]
[1756613771729,3.4534095,205.45,205.4,26.78430018]
[1756613772426,3.4534095,205.45,205.4,23.33089068]
[1756613772603,4.1534095,205.45,205.4,26.78430018]
[1756613773210,3.4534095,205.44,205.4,23.33089068]
[1756613774529,4.1534095,205.43,205.4,4.866954]
[1756613774709,4.1534095,205.43,205.38,21.91784603]
[1756613775037,4.1534095,205.43,205.39,4.867409]
[1756613775913,3.4534095,205.43,205.39,4.867409]
[1756613776113,4.1534095,205.43,205.39,4.867409]
[1756613776327,0.7,205.43,205.39,4.867409]
[1756613776517,3.4534095,205.44,205.39,4.867409]
[1756613776725,0.7,205.43,205.39,9.73608517]
[1756613777529,3.4534095,205.44,205.39,9.73608517]
[1756613777730,4.1534095,205.44,205.39,9.73608517]
[1756613777906,0.7,205.43,205.39,9.73608517]
[1756613778424,3.4534095,205.44,205.39,9.73608517]
[1756613778652,4.1534095,205.44,205.39,9.73608517]
[1756613778821,3.4534095,205.46,205.4,17.04900351]
[1756613779022,3.4534095,205.46,205.41,3.4534095]
[1756613779214,4.1534095,205.46,205.41,3.4534095]
[1756613779420,0.7,205.45,205.4,17.04900351]
[1756613779601,0.7,205.45,205.4,31.68136551]
[1756613779801,3.4534095,205.46,205.4,31.68136551]
[1756613780005,3.4534095,205.46,205.42,13.59559401]
[1756613780232,4.1534095,205.46,205.42,13.59559401]
[1756613780828,4.1534095,205.46,205.42,18.46358351]
[1756613780829,0.7,205.45,205.42,18.46358351]
[1756613781022,4.1534095,205.45,205.42,18.46358351]
[1756613783643,3.4534095,205.48,205.42,21.91699301]
[1756613783830,3.4534095,205.48,205.42,26.78371301]
[1756613784036,4.1534095,205.48,205.42,64.50371301]
[1756613784220,3.4534095,205.48,205.42,64.50371301]
[1756613784414,0.7,205.47,205.42,64.50371301]
[1756613784615,0.7,205.46,205.42,64.50371301]
[1756613785331,3.4534095,205.47,205.42,64.50371301]
[1756613785536,4.1534095,205.47,205.42,64.50371301]
[1756613785738,4.1534095,205.47,205.42,61.05030351]
[1756613785921,4.1534095,205.47,205.42,64.50371301]
[1756613786636,3.4534095,205.47,205.42,64.50371301]
[1756613786816,4.1534095,205.47,205.42,61.05030351]
[1756613787324,3.4534095,205.47,205.42,61.05030351]
[1756613787522,0.7,205.46,205.42,61.05030351]
[1756613788726,3.4534095,205.47,205.42,64.50371301]
[1756613788925,3.4534095,205.47,205.43,37.7]
[1756613789536,0.7,205.46,205.43,37.7]
[1756613790036,0.7,205.46,205.43,42.56783542]
[1756613791647,0.66,205.45,205.43,42.56783542]
[1756613792425,4.1134095,205.47,205.43,42.56783542]
[1756613792642,0.66,205.46,205.43,42.56783542]
[1756613794028,0.66,205.46,205.42,23.33034908]
[1756613794238,0.66,205.46,205.43,37.68]
[1756613794636,4.1134095,205.46,205.43,37.68]
[1756613795622,0.66,205.45,205.42,23.33034908]
[1756613795821,0.66,205.45,205.43,37.68]
[1756613796433,3.4534095,205.46,205.43,37.68]
[1756613796641,4.1134095,205.46,205.43,37.68]
[1756613798427,0.66,205.45,205.42,13.59559401]
[1756613798629,0.66,205.44,205.43,51.27559401]
[1756613798843,0.66,205.44,205.43,13.59559401]
[1756613799524,3.4534095,205.46,205.43,13.59559401]
[1756613799730,0.66,205.44,205.43,13.59559401]
[1756613799945,0.66,205.45,205.43,13.59559401]
[1756613800144,0.66,205.44,205.43,13.59559401]
[1756613800348,4.1134095,205.44,205.39,13.62559401]
[1756613800542,0.66,205.43,205.39,51.30559401]
[1756613800750,4.1134095,205.43,205.39,51.30559401]
[1756613802058,4.1134095,205.43,205.4,0.03]
[1756613802261,0.66,205.42,205.4,0.03]
[1756613802556,0.66,205.43,205.4,0.03]
[1756613802930,0.66,205.42,205.4,0.03]
[1756613804662,4.1134095,205.44,205.4,0.03]
[1756613804856,0.66,205.43,205.4,0.03]
[1756613805351,3.4534095,205.44,205.4,0.03]
[1756613805531,0.66,205.43,205.4,0.03]
[1756613806155,0.66,205.42,205.4,0.03]
[1756613807941,3.4534095,205.44,205.4,0.03]
[1756613807942,0.66,205.41,205.4,0.03]
[1756613808745,0.66,205.43,205.4,0.03]
[1756613809468,0.66,205.46,205.42,4.86807516]
[1756613809639,0.66,205.45,205.42,42.54807516]
[1756613809841,0.06,205.47,205.42,42.54807516]
[1756613810161,0.66,205.46,205.43,17.04900351]
[1756613811059,0.66,205.46,205.43,13.59559401]
[1756613811439,0.66,205.45,205.43,13.59559401]
[1756613811667,0.66,205.45,205.43,18.46334948]
[1756613812242,0.66,205.44,205.41,18.46384076]
[1756613812448,0.66,205.44,205.43,37.68]
[1756613812649,3.4534095,205.46,205.43,37.68]
[1756613813066,0.66,205.45,205.43,37.68]
[1756613813260,0.72,205.47,205.43,37.68]
[1756613813559,0.72,205.47,205.43,41.1334095]
[1756613813763,0.66,205.46,205.44,4.86760124]
[1756613814372,0.66,205.46,205.43,41.1334095]
[1756613814373,0.66,205.46,205.43,42.5477746]
[1756613814546,3.5134095,205.47,205.43,42.5477746]
[1756613814746,0.66,205.45,205.43,42.5477746]
[1756613814946,0.06,205.47,205.44,17.04900351]
[1756613815164,0.06,205.47,205.46,17.04900351]
[1756613815364,0.06,205.47,205.46,54.74900351]
[1756613815851,0.06,205.47,205.46,59.61613093]
[1756613816051,0.06,205.47,205.46,56.16272143]
[1756613816275,0.06,205.47,205.46,59.61613093]
[1756613818763,0.06,205.47,205.46,61.56635093]
[1756613819560,0.06,205.47,205.46,23.86635093]
[1756613819765,0.06,205.47,205.46,61.54635093]
[1756613821274,0.06,205.47,205.46,20.41294143]
[1756613821476,0.06,205.47,205.46,61.54635093]
[1756613821677,0.73,205.47,205.46,15.54581401]
[1756613821880,0.73,205.47,205.45,37.68]
[1756613822078,0.73,205.47,205.45,41.1334095]
[1756613822253,0.73,205.47,205.46,3.4534095]
[1756613822847,0.06,205.47,205.46,17.04900351]
[1756613823697,0.06,205.47,205.46,18.99922351]
[1756613824069,0.06,205.47,205.46,61.56635093]
[1756613824387,0.73,205.47,205.46,61.56635093]
[1756613824555,0.06,205.47,205.46,61.56635093]
[1756613825980,0.73,205.47,205.46,59.61613093]
[1756613826778,0.06,205.47,205.46,59.61613093]
[1756613828685,0.73,205.47,205.46,59.61613093]
[1756613829177,0.73,205.47,205.46,18.46272143]
[1756613829486,0.73,205.47,205.46,59.59613093]
[1756613830291,4.1834095,205.47,205.43,51.27559401]
[1756613830467,0.67,205.46,205.43,37.68]
[1756613830663,0.67,205.45,205.43,37.68]
[1756613830992,0.67,205.44,205.43,37.68]
[1756613832486,0.67,205.44,205.41,17.04900351]
[1756613832683,0.67,205.43,205.41,46.00161842]
[1756613832873,0.67,205.42,205.41,46.00161842]
[1756613833570,0.67,205.42,205.41,37.68]
[1756613834494,0.67,205.42,205.4,0.03]
[1756613834794,4.1234095,205.42,205.4,0.03]
[1756613834976,0.67,205.42,205.4,0.03]